fUSD/lending_fUSD_20260614
["ID","MTS","AMOUNT","RATE_DAILY","PERIOD"]
[425008153,1781412638000,-500.0,0.00027397,2]
[425008148,1781412638000,-1023.56,0.00027397,2]
[425008152,1781412638000,-500.0,0.00027397,2]
[425008139,1781412638000,-735.69,0.00027397,2]
[425008188,1781412638000,-500.0,0.00027397,2]
[425008137,1781412638000,-500.0,0.00027397,2]
[425008190,1781412638000,-500.0,0.00027397,2]
[425008222,1781412638000,-500.0,0.00027397,2]
[425008224,1781412638000,-691.93,0.00027397,2]
[425008231,1781412638000,-500.0,0.00027397,2]
[425008227,1781412638000,-1471.09,0.00027397,2]
[425008228,1781412638000,-681.29,0.00027397,2]
[425008225,1781412638000,-500.0,0.00027397,2]
[425008229,1781412638000,-500.0,0.00027397,2]
[425008232,1781412638000,-559.98,0.00027397,2]
[425008226,1781412638000,-500.0,0.00027397,2]
[425008230,1781412638000,-516.16,0.00027397,2]
[425008234,1781412638000,-500.0,0.00027397,2]
[425008233,1781412638000,-500.0,0.00027397,2]
[425008236,1781412638000,-500.0,0.00027397,2]
[425008223,1781412638000,-645.65,0.00027397,2]
[425008250,1781412638000,-500.0,0.00027397,2]
[425008238,1781412638000,-1073.91,0.00027397,2]
[425008237,1781412638000,-2587.9,0.00027397,2]
[425008240,1781412638000,-500.0,0.00027397,2]
[425008242,1781412638000,-1015.69,0.00027397,2]
[425008239,1781412638000,-500.0,0.00027397,2]
[425008243,1781412638000,-500.0,0.00027397,2]
[425008244,1781412638000,-1615.21,0.00027397,2]
[425008246,1781412638000,-500.0,0.00027397,2]
[425008245,1781412638000,-533.99852194,0.00027397,2]
[425008247,1781412638000,-500.0,0.00027397,2]
[425008249,1781412638000,-614.1,0.00027397,2]
[425008248,1781412638000,-500.0,0.00027397,2]
[425008187,1781412638000,-500.0,0.00027397,2]
[425008235,1781412638000,-500.0,0.00027397,2]
[425008221,1781412638000,-562.80047257,0.00027397,2]
[425008241,1781412638000,-500.0,0.00027397,2]
[425008219,1781412638000,-845.71,0.00027397,2]
[425008220,1781412638000,-384.78629357,0.00027397,2]
[425008189,1781412638000,-1659.48,0.00027397,2]
[425008192,1781412638000,-2115.09,0.00027397,2]
[425008193,1781412638000,-500.0,0.00027397,2]
[425008191,1781412638000,-500.0,0.00027397,2]
[425008195,1781412638000,-1675.91,0.00027397,2]
[425008196,1781412638000,-500.0,0.00027397,2]
[425008198,1781412638000,-585.03,0.00027397,2]
[425008203,1781412638000,-500.0,0.00027397,2]
[425008197,1781412638000,-500.0,0.00027397,2]
[425008204,1781412638000,-500.0,0.00027397,2]
[425008200,1781412638000,-1198.28,0.00027397,2]
[425008199,1781412638000,-500.0,0.00027397,2]
[425008205,1781412638000,-535.91531743,0.00027397,2]
[425008194,1781412638000,-444.15621437,0.00027397,2]
[425008202,1781412638000,-1673.77,0.00027397,2]
[425008218,1781412638000,-500.0,0.00027397,2]
[425008201,1781412638000,-500.0,0.00027397,2]
[425008217,1781412638000,-500.0,0.00027397,2]
[425008212,1781412638000,-500.0,0.00027397,2]
[425008216,1781412638000,-913.06,0.00027397,2]
[425008213,1781412638000,-500.0,0.00027397,2]
[425008214,1781412638000,-562.59842007,0.00027397,2]
[425008215,1781412638000,-500.0,0.00027397,2]
[425008210,1781412638000,-500.0,0.00027397,2]
[425008209,1781412638000,-1289.21,0.00027397,2]
[425008207,1781412638000,-165.56706652,0.00027397,2]
[425008208,1781412638000,-1059.93,0.00027397,2]
[425008206,1781412638000,-589.15,0.00027397,2]
[425008211,1781412638000,-1080.75,0.00027397,2]
[425008276,1781412639000,-500.0,0.00027397,2]
[425008277,1781412639000,-500.0,0.00027397,2]
[425008285,1781412639000,-1422.21,0.00027397,2]
[425008280,1781412639000,-842.87,0.00027397,2]
[425008281,1781412639000,-1064.21,0.00027397,2]
[425008278,1781412639000,-2111.57,0.00027397,2]
[425008282,1781412639000,-500.0,0.00027397,2]
[425008279,1781412639000,-500.0,0.00027397,2]
[425008283,1781412639000,-500.0,0.00027397,2]
[425008284,1781412639000,-500.0,0.00027397,2]
[425008290,1781412639000,-500.0,0.00027397,2]
[425008286,1781412639000,-500.0,0.00027397,2]
[425008288,1781412639000,-500.0,0.00027397,2]
[425008292,1781412639000,-500.0,0.00027397,2]
[425008291,1781412639000,-500.0,0.00027397,2]
[425008289,1781412639000,-542.97,0.00027397,2]
[425008293,1781412639000,-500.0,0.00027397,2]
[425008294,1781412639000,-702.92,0.00027397,2]
[425008274,1781412639000,-500.0,0.00027397,2]
[425008295,1781412639000,-500.0,0.00027397,2]
[425008287,1781412639000,-1427.35,0.00027397,2]
[425008275,1781412639000,-500.0,0.00027397,2]
[425008260,1781412639000,-1087.19,0.00027397,2]
[425008272,1781412639000,-1755.57,0.00027397,2]
[425008297,1781412639000,-500.0,0.00027397,2]
[425008252,1781412639000,-500.0,0.00027397,2]
[425008251,1781412639000,-500.0,0.00027397,2]
[425008254,1781412639000,-500.0,0.00027397,2]
[425008253,1781412639000,-528.66,0.00027397,2]
[425008255,1781412639000,-500.0,0.00027397,2]
[425008257,1781412639000,-617.31,0.00027397,2]
[425008256,1781412639000,-500.0,0.00027397,2]
[425008258,1781412639000,-600.36,0.00027397,2]
[425008259,1781412639000,-500.0,0.00027397,2]
[425008261,1781412639000,-500.0,0.00027397,2]
[425008262,1781412639000,-583.88,0.00027397,2]
[425008264,1781412639000,-1039.97,0.00027397,2]
[425008267,1781412639000,-909.15,0.00027397,2]
[425008265,1781412639000,-2777.35,0.00027397,2]
[425008263,1781412639000,-500.0,0.00027397,2]
[425008270,1781412639000,-517.2,0.00027397,2]
[425008266,1781412639000,-500.0,0.00027397,2]
[425008268,1781412639000,-701.07,0.00027397,2]
[425008269,1781412639000,-620.51,0.00027397,2]
[425008271,1781412639000,-561.61,0.00027397,2]
[425008273,1781412639000,-558.03,0.00027397,2]
[425008296,1781412639000,-779.47,0.00027397,2]
[425008302,1781412639000,-500.0,0.00027397,2]
[425008298,1781412639000,-500.0,0.00027397,2]
[425008327,1781412639000,-813.15,0.00027397,2]
[425008326,1781412639000,-500.0,0.00027397,2]
[425008329,1781412639000,-500.0,0.00027397,2]
[425008330,1781412639000,-500.0,0.00027397,2]
[425008328,1781412639000,-1879.34,0.00027397,2]
[425008332,1781412639000,-500.0,0.00027397,2]
[425008331,1781412639000,-500.0,0.00027397,2]
[425008339,1781412639000,-2702.99,0.00027397,2]
[425008341,1781412639000,-1057.13,0.00027397,2]
[425008338,1781412639000,-500.0,0.00027397,2]
[425008335,1781412639000,-500.0,0.00027397,2]
[425008344,1781412639000,-500.0,0.00027397,2]
[425008334,1781412639000,-500.0,0.00027397,2]
[425008337,1781412639000,-500.0,0.00027397,2]
[425008340,1781412639000,-500.0,0.00027397,2]
[425008336,1781412639000,-730.92,0.00027397,2]
[425008343,1781412639000,-1793.44,0.00027397,2]
[425008345,1781412639000,-500.0,0.00027397,2]
[425008346,1781412639000,-500.0,0.00027397,2]
[425008347,1781412639000,-1329.92,0.00027397,2]
[425008299,1781412639000,-500.0,0.00027397,2]
[425008325,1781412639000,-1603.48,0.00027397,2]
[425008324,1781412639000,-500.0,0.00027397,2]
[425008333,1781412639000,-500.0,0.00027397,2]
[425008321,1781412639000,-500.0,0.00027397,2]
[425008307,1781412639000,-1516.11,0.00027397,2]
[425008323,1781412639000,-525.57621866,0.00027397,2]
[425008305,1781412639000,-500.0,0.00027397,2]
[425008304,1781412639000,-500.0,0.00027397,2]
[425008300,1781412639000,-500.0,0.00027397,2]
[425008306,1781412639000,-622.55,0.00027397,2]
[425008301,1781412639000,-500.0,0.00027397,2]
[425008309,1781412639000,-1492.97,0.00027397,2]
[425008308,1781412639000,-500.0,0.00027397,2]
[425008311,1781412639000,-1889.86,0.00027397,2]
[425008310,1781412639000,-1929.81,0.00027397,2]
[425008303,1781412639000,-500.0,0.00027397,2]
[425008312,1781412639000,-541.98,0.00027397,2]
[425008317,1781412639000,-500.0,0.00027397,2]
[425008314,1781412639000,-749.09,0.00027397,2]
[425008315,1781412639000,-500.0,0.00027397,2]
[425008313,1781412639000,-500.0,0.00027397,2]
[425008316,1781412639000,-500.0,0.00027397,2]
[425008318,1781412639000,-500.0,0.00027397,2]
[425008320,1781412639000,-500.0,0.00027397,2]
[425008319,1781412639000,-1063.21,0.00027397,2]
[425008322,1781412639000,-500.0,0.00027397,2]
[425008382,1781412640000,-1057.83,0.00027397,2]
[425008389,1781412640000,-765.46,0.00027397,2]
[425008388,1781412640000,-500.0,0.00027397,2]
[425008383,1781412640000,-500.0,0.00027397,2]
[425008387,1781412640000,-540.12,0.00027397,2]
[425008380,1781412640000,-989.38,0.00027397,2]
[425008384,1781412640000,-632.32,0.00027397,2]
[425008385,1781412640000,-1052.46,0.00027397,2]
[425008386,1781412640000,-500.0,0.00027397,2]
[425008390,1781412640000,-500.0,0.00027397,2]
[425008381,1781412640000,-500.0,0.00027397,2]
[425008391,1781412640000,-500.0,0.00027397,2]
[425008401,1781412640000,-500.0,0.00027397,2]
[425008393,1781412640000,-777.97,0.00027397,2]
[425008394,1781412640000,-714.13,0.00027397,2]
[425008395,1781412640000,-1285.45,0.00027397,2]
[425008399,1781412640000,-500.0,0.00027397,2]
[425008398,1781412640000,-1535.4,0.00027397,2]
[425008397,1781412640000,-723.45,0.00027397,2]
[425008396,1781412640000,-500.0,0.00027397,2]
[425008400,1781412640000,-3262.01,0.00027397,2]
[425008402,1781412640000,-601.2,0.00027397,2]
[425008403,1781412640000,-629.84,0.00027397,2]
[425008379,1781412640000,-500.0,0.00027397,2]
[425008392,1781412640000,-500.0,0.00027397,2]
[425008372,1781412640000,-500.0,0.00027397,2]
[425008352,1781412640000,-500.0,0.00027397,2]
[425008374,1781412640000,-1025.96,0.00027397,2]
[425008405,1781412640000,-1237.19,0.00027397,2]
[425008349,1781412640000,-500.0,0.00027397,2]
[425008348,1781412640000,-500.0,0.00027397,2]
[425008350,1781412640000,-500.0,0.00027397,2]
[425008351,1781412640000,-500.0,0.00027397,2]
[425008354,1781412640000,-970.52,0.00027397,2]
[425008353,1781412640000,-678.81,0.00027397,2]
[425008357,1781412640000,-584.87,0.00027397,2]
[425008356,1781412640000,-500.0,0.00027397,2]
[425008361,1781412640000,-500.0,0.00027397,2]
[425008359,1781412640000,-510.01,0.00027397,2]
[425008358,1781412640000,-500.0,0.00027397,2]
[425008355,1781412640000,-500.0,0.00027397,2]
[425008360,1781412640000,-500.0,0.00027397,2]
[425008362,1781412640000,-1267.91,0.00027397,2]
[425008365,1781412640000,-628.50573477,0.00027397,2]
[425008363,1781412640000,-500.0,0.00027397,2]
[425008368,1781412640000,-1112.24,0.00027397,2]
[425008376,1781412640000,-500.0,0.00027397,2]
[425008377,1781412640000,-500.0,0.00027397,2]
[425008378,1781412640000,-500.0,0.00027397,2]
[425008370,1781412640000,-599.38,0.00027397,2]
[425008367,1781412640000,-500.0,0.00027397,2]
[425008375,1781412640000,-500.0,0.00027397,2]
[425008373,1781412640000,-574.78,0.00027397,2]
[425008371,1781412640000,-500.0,0.00027397,2]
[425008404,1781412640000,-919.65,0.00027397,2]
[425008458,1781412640000,-500.0,0.00027397,2]
[425008408,1781412640000,-1672.8,0.00027397,2]
[425008438,1781412640000,-500.0,0.00027397,2]
[425008437,1781412640000,-589.98,0.00027397,2]
[425008441,1781412640000,-500.0,0.00027397,2]
[425008440,1781412640000,-1033.06,0.00027397,2]
[425008446,1781412640000,-1258.82,0.00027397,2]
[425008447,1781412640000,-311.00736924,0.00027397,2]
[425008444,1781412640000,-500.0,0.00027397,2]
[425008443,1781412640000,-500.0,0.00027397,2]
[425008442,1781412640000,-804.14,0.00027397,2]
[425008439,1781412640000,-500.0,0.00027397,2]
[425008445,1781412640000,-500.0,0.00027397,2]
[425008448,1781412640000,-579.81,0.00027397,2]
[425008449,1781412640000,-500.0,0.00027397,2]
[425008454,1781412640000,-961.87,0.00027397,2]
[425008451,1781412640000,-500.0,0.00027397,2]
[425008453,1781412640000,-813.1,0.00027397,2]
[425008460,1781412640000,-1563.27,0.00027397,2]
[425008456,1781412640000,-500.0,0.00027397,2]
[425008452,1781412640000,-533.74,0.00027397,2]
[425008461,1781412640000,-500.0,0.00027397,2]
[425008462,1781412640000,-671.49,0.00027397,2]
[425008455,1781412640000,-500.0,0.00027397,2]
[425008457,1781412640000,-2930.4,0.00027397,2]
[425008459,1781412640000,-500.0,0.00027397,2]
[425008463,1781412640000,-500.0,0.00027397,2]
[425008435,1781412640000,-500.0,0.00027397,2]
[425008436,1781412640000,-500.0,0.00027397,2]
[425008406,1781412640000,-500.0,0.00027397,2]
[425008426,1781412640000,-2026.37,0.00027397,2]
[425008428,1781412640000,-500.0,0.00027397,2]
[425008410,1781412640000,-500.0,0.00027397,2]
[425008407,1781412640000,-500.0,0.00027397,2]
[425008411,1781412640000,-1383.07,0.00027397,2]
[425008412,1781412640000,-1111.21,0.00027397,2]
[425008409,1781412640000,-1545.51,0.00027397,2]
[425008413,1781412640000,-500.0,0.00027397,2]
[425008414,1781412640000,-1822.51,0.00027397,2]
[425008416,1781412640000,-500.0,0.00027397,2]
[425008423,1781412640000,-1870.29,0.00027397,2]
[425008419,1781412640000,-1731.92,0.00027397,2]
[425008418,1781412640000,-500.0,0.00027397,2]
[425008415,1781412640000,-1480.16,0.00027397,2]
[425008417,1781412640000,-500.0,0.00027397,2]
[425008420,1781412640000,-500.0,0.00027397,2]
[425008433,1781412640000,-500.0,0.00027397,2]
[425008429,1781412640000,-500.0,0.00027397,2]
[425008432,1781412640000,-500.0,0.00027397,2]
[425008427,1781412640000,-500.0,0.00027397,2]
[425008434,1781412640000,-878.41,0.00027397,2]
[425008431,1781412640000,-855.82,0.00027397,2]
[425008425,1781412640000,-745.76,0.00027397,2]
[425008424,1781412640000,-500.0,0.00027397,2]
[425008422,1781412640000,-500.0,0.00027397,2]
[425008421,1781412640000,-2399.74,0.00027397,2]
[425008430,1781412640000,-960.18,0.00027397,2]
[425008508,1781412641000,-2679.21,0.00027397,2]
[425008509,1781412641000,-723.52,0.00027397,2]
[425008507,1781412641000,-500.0,0.00027397,2]
[425008505,1781412641000,-500.0,0.00027397,2]
[425008500,1781412641000,-659.7,0.00027397,2]
[425008504,1781412641000,-500.0,0.00027397,2]
[425008502,1781412641000,-500.0,0.00027397,2]
[425008501,1781412641000,-500.0,0.00027397,2]
[425008499,1781412641000,-500.0,0.00027397,2]
[425008510,1781412641000,-1428.44,0.00027397,2]
[425008506,1781412641000,-649.0,0.00027397,2]
[425008503,1781412641000,-2035.16,0.00027397,2]
[425008523,1781412641000,-500.0,0.00027397,2]
[425008513,1781412641000,-1929.52,0.00027397,2]
[425008512,1781412641000,-777.82,0.00027397,2]
[425008518,1781412641000,-500.0,0.00027397,2]
[425008520,1781412641000,-788.07,0.00027397,2]
[425008519,1781412641000,-500.0,0.00027397,2]
[425008517,1781412641000,-500.0,0.00027397,2]
[425008515,1781412641000,-680.58,0.00027397,2]
[425008521,1781412641000,-500.0,0.00027397,2]
[425008514,1781412641000,-500.0,0.00027397,2]
[425008516,1781412641000,-500.0,0.00027397,2]
[425008522,1781412641000,-500.0,0.00027397,2]
[425008494,1781412641000,-1509.36,0.00027397,2]
[425008528,1781412641000,-500.0,0.00027397,2]
[425008511,1781412641000,-500.0,0.00027397,2]
[425008491,1781412641000,-834.16,0.00027397,2]
[425008480,1781412641000,-250.00434921,0.00027397,2]
[425008488,1781412641000,-500.0,0.00027397,2]
[425008465,1781412641000,-500.0,0.00027397,2]
[425008531,1781412641000,-1159.37,0.00027397,2]
[425008467,1781412641000,-500.0,0.00027397,2]
[425008466,1781412641000,-500.0,0.00027397,2]
[425008469,1781412641000,-500.0,0.00027397,2]
[425008471,1781412641000,-753.7,0.00027397,2]
[425008472,1781412641000,-1419.27,0.00027397,2]
[425008470,1781412641000,-500.0,0.00027397,2]
[425008468,1781412641000,-1714.43,0.00027397,2]
[425008474,1781412641000,-1322.89,0.00027397,2]
[425008473,1781412641000,-500.0,0.00027397,2]
[425008476,1781412641000,-549.94,0.00027397,2]
[425008498,1781412641000,-658.32,0.00027397,2]
[425008475,1781412641000,-774.03,0.00027397,2]
[425008478,1781412641000,-1275.33,0.00027397,2]
[425008479,1781412641000,-1031.13,0.00027397,2]
[425008483,1781412641000,-566.22874032,0.00027397,2]
[425008481,1781412641000,-2415.9,0.00027397,2]
[425008482,1781412641000,-500.0,0.00027397,2]
[425008485,1781412641000,-500.0,0.00027397,2]
[425008484,1781412641000,-500.0,0.00027397,2]
[425008487,1781412641000,-500.0,0.00027397,2]
[425008486,1781412641000,-831.68,0.00027397,2]
[425008496,1781412641000,-520.85,0.00027397,2]
[425008497,1781412641000,-500.0,0.00027397,2]
[425008489,1781412641000,-1007.33,0.00027397,2]
[425008477,1781412641000,-500.0,0.00027397,2]
[425008464,1781412641000,-1560.69,0.00027397,2]
[425008526,1781412641000,-581.98,0.00027397,2]
[425008534,1781412641000,-500.0,0.00027397,2]
[425008558,1781412641000,-773.17,0.00027397,2]
[425008563,1781412641000,-1329.08,0.00027397,2]
[425008562,1781412641000,-500.0,0.00027397,2]
[425008565,1781412641000,-2610.35,0.00027397,2]
[425008564,1781412641000,-611.27,0.00027397,2]
[425008567,1781412641000,-601.10446718,0.00027397,2]
[425008570,1781412641000,-500.0,0.00027397,2]
[425008568,1781412641000,-500.0,0.00027397,2]
[425008566,1781412641000,-1061.11,0.00027397,2]
[425008573,1781412641000,-500.0,0.00027397,2]
[425008571,1781412641000,-669.87,0.00027397,2]
[425008572,1781412641000,-500.0,0.00027397,2]
[425008569,1781412641000,-500.0,0.00027397,2]
[425008574,1781412641000,-500.0,0.00027397,2]
[425008575,1781412641000,-1774.5,0.00027397,2]
[425008576,1781412641000,-500.0,0.00027397,2]
[425008577,1781412641000,-996.43,0.00027397,2]
[425008580,1781412641000,-575.74,0.00027397,2]
[425008581,1781412641000,-500.0,0.00027397,2]
[425008582,1781412641000,-187.76252349,0.00027397,2]
[425008583,1781412641000,-562.99,0.00027397,2]
[425008578,1781412641000,-500.0,0.00027397,2]
[425008579,1781412641000,-500.0,0.00027397,2]
[425008585,1781412641000,-500.0,0.00027397,2]
[425008586,1781412641000,-1566.12,0.00027397,2]
[425008530,1781412641000,-597.94388083,0.00027397,2]
[425008587,1781412641000,-500.0,0.00027397,2]
[425008560,1781412641000,-599.34,0.00027397,2]
[425008561,1781412641000,-500.0,0.00027397,2]
[425008584,1781412641000,-1237.94,0.00027397,2]
[425008559,1781412641000,-500.0,0.00027397,2]
[425008556,1781412641000,-2163.19,0.00027397,2]
[425008533,1781412641000,-500.0,0.00027397,2]
[425008527,1781412641000,-500.0,0.00027397,2]
[425008525,1781412641000,-500.0,0.00027397,2]
[425008524,1781412641000,-500.0,0.00027397,2]
[425008536,1781412641000,-500.0,0.00027397,2]
[425008532,1781412641000,-824.8,0.00027397,2]
[425008535,1781412641000,-523.68391171,0.00027397,2]
[425008537,1781412641000,-500.0,0.00027397,2]
[425008539,1781412641000,-602.50378675,0.00027397,2]
[425008542,1781412641000,-500.0,0.00027397,2]
[425008540,1781412641000,-500.0,0.00027397,2]
[425008541,1781412641000,-500.0,0.00027397,2]
[425008529,1781412641000,-500.0,0.00027397,2]
[425008545,1781412641000,-500.0,0.00027397,2]
[425008557,1781412641000,-500.0,0.00027397,2]
[425008553,1781412641000,-626.28,0.00027397,2]
[425008555,1781412641000,-500.0,0.00027397,2]
[425008554,1781412641000,-500.0,0.00027397,2]
[425008548,1781412641000,-995.14,0.00027397,2]
[425008552,1781412641000,-500.0,0.00027397,2]
[425008551,1781412641000,-500.0,0.00027397,2]
[425008549,1781412641000,-500.0,0.00027397,2]
[425008544,1781412641000,-3445.43,0.00027397,2]
[425008547,1781412641000,-500.0,0.00027397,2]
[425008543,1781412641000,-3181.72,0.00027397,2]
[425008546,1781412641000,-500.0,0.00027397,2]
[425008550,1781412641000,-800.3,0.00027397,2]
[425008626,1781412642000,-500.0,0.00027397,2]
[425008624,1781412642000,-500.0,0.00027397,2]
[425008631,1781412642000,-500.0,0.00027397,2]
[425008623,1781412642000,-500.0,0.00027397,2]
[425008618,1781412642000,-1881.99,0.00027397,2]
[425008630,1781412642000,-922.35,0.00027397,2]
[425008622,1781412642000,-500.0,0.00027397,2]
[425008621,1781412642000,-500.0,0.00027397,2]
[425008620,1781412642000,-500.0,0.00027397,2]
[425008619,1781412642000,-500.0,0.00027397,2]
[425008625,1781412642000,-500.0,0.00027397,2]
[425008628,1781412642000,-645.33,0.00027397,2]
[425008633,1781412642000,-545.16,0.00027397,2]
[425008627,1781412642000,-2119.45,0.00027397,2]
[425008632,1781412642000,-500.0,0.00027397,2]
[425008634,1781412642000,-2372.27,0.00027397,2]
[425008636,1781412642000,-596.92,0.00027397,2]
[425008635,1781412642000,-500.0,0.00027397,2]
[425008640,1781412642000,-840.44,0.00027397,2]
[425008642,1781412642000,-508.09,0.00027397,2]
[425008638,1781412642000,-500.0,0.00027397,2]
[425008641,1781412642000,-500.0,0.00027397,2]
[425008639,1781412642000,-500.0,0.00027397,2]
[425008637,1781412642000,-3430.6,0.00027397,2]
[425008617,1781412642000,-592.79,0.00027397,2]
[425008629,1781412642000,-500.0,0.00027397,2]
[425008616,1781412642000,-502.16,0.00027397,2]
[425008602,1781412642000,-1356.73,0.00027397,2]
[425008611,1781412642000,-500.0,0.00027397,2]
[425008588,1781412642000,-500.0,0.00027397,2]
[425008590,1781412642000,-1460.01,0.00027397,2]
[425008643,1781412642000,-242.00120316,0.00027397,2]
[425008598,1781412642000,-236.32766737,0.00027397,2]
[425008594,1781412642000,-500.0,0.00027397,2]
[425008592,1781412642000,-797.81,0.00027397,2]
[425008596,1781412642000,-500.0,0.00027397,2]
[425008595,1781412642000,-500.0,0.00027397,2]
[425008591,1781412642000,-752.7,0.00027397,2]
[425008597,1781412642000,-500.0,0.00027397,2]
[425008593,1781412642000,-500.0,0.00027397,2]
[425008599,1781412642000,-1610.59,0.00027397,2]
[425008600,1781412642000,-500.0,0.00027397,2]
[425008603,1781412642000,-524.19,0.00027397,2]
[425008608,1781412642000,-1252.66,0.00027397,2]
[425008601,1781412642000,-500.0,0.00027397,2]
[425008607,1781412642000,-1411.59,0.00027397,2]
[425008606,1781412642000,-620.19,0.00027397,2]
[425008605,1781412642000,-1378.62,0.00027397,2]
[425008604,1781412642000,-525.54681232,0.00027397,2]
[425008609,1781412642000,-500.0,0.00027397,2]
[425008610,1781412642000,-535.34,0.00027397,2]
[425008612,1781412642000,-500.0,0.00027397,2]
[425008613,1781412642000,-816.74,0.00027397,2]
[425008614,1781412642000,-500.0,0.00027397,2]
[425008615,1781412642000,-1312.02,0.00027397,2]
[425008650,1781412642000,-500.0,0.00027397,2]
[425008589,1781412642000,-500.0,0.00027397,2]
[425008648,1781412642000,-500.0,0.00027397,2]
[425008677,1781412642000,-1304.3,0.00027397,2]
[425008678,1781412642000,-1591.01,0.00027397,2]
[425008680,1781412642000,-541.64,0.00027397,2]
[425008679,1781412642000,-500.0,0.00027397,2]
[425008689,1781412642000,-500.0,0.00027397,2]
[425008688,1781412642000,-504.92,0.00027397,2]
[425008681,1781412642000,-500.0,0.00027397,2]
[425008682,1781412642000,-500.0,0.00027397,2]
[425008683,1781412642000,-500.0,0.00027397,2]
[425008685,1781412642000,-500.0,0.00027397,2]
[425008684,1781412642000,-500.0,0.00027397,2]
[425008687,1781412642000,-500.0,0.00027397,2]
[425008676,1781412642000,-500.0,0.00027397,2]
[425008690,1781412642000,-500.0,0.00027397,2]
[425008692,1781412642000,-697.1,0.00027397,2]
[425008693,1781412642000,-768.14,0.00027397,2]
[425008695,1781412642000,-349.84856659,0.00027397,2]
[425008697,1781412642000,-500.0,0.00027397,2]
[425008709,1781412642000,-500.0,0.00027397,2]
[425008701,1781412642000,-851.46,0.00027397,2]
[425008699,1781412642000,-500.0,0.00027397,2]
[425008704,1781412642000,-1295.99,0.00027397,2]
[425008708,1781412642000,-500.0,0.00027397,2]
[425008707,1781412642000,-824.89,0.00027397,2]
[425008710,1781412642000,-500.0,0.00027397,2]
[425008644,1781412642000,-500.0,0.00027397,2]
[425008691,1781412642000,-500.0,0.00027397,2]
[425008675,1781412642000,-500.0,0.00027397,2]
[425008686,1781412642000,-869.29,0.00027397,2]
[425008673,1781412642000,-528.07,0.00027397,2]
[425008674,1781412642000,-500.0,0.00027397,2]
[425008645,1781412642000,-500.0,0.00027397,2]
[425008646,1781412642000,-500.0,0.00027397,2]
[425008647,1781412642000,-1470.97,0.00027397,2]
[425008651,1781412642000,-500.0,0.00027397,2]
[425008649,1781412642000,-500.0,0.00027397,2]
[425008654,1781412642000,-500.0,0.00027397,2]
[425008652,1781412642000,-710.8,0.00027397,2]
[425008655,1781412642000,-563.82668594,0.00027397,2]
[425008656,1781412642000,-500.0,0.00027397,2]
[425008657,1781412642000,-500.0,0.00027397,2]
[425008660,1781412642000,-500.0,0.00027397,2]
[425008658,1781412642000,-500.0,0.00027397,2]
[425008653,1781412642000,-500.0,0.00027397,2]
[425008671,1781412642000,-568.13,0.00027397,2]
[425008672,1781412642000,-1423.51,0.00027397,2]